bitfinex-derivatives/quotes_ETHF0:USTF0_20251126
["timestamp","ask_amount","ask_price","bid_price","bid_amount"]
[1764130416563,1.48797579,2923.9,2923.4,1.06881031]
[1764130417257,0.90466316,2924.5,2923.8,1.48797579]
[1764130417461,0.00513303,2924.5,2923.8,1.48797579]
[1764130417850,1.48797579,2924.4,2923.6,1.48797579]
[1764130418366,1.48797579,2923.7,2923.6,2.063]
[1764130418557,1.48797579,2923.7,2923.5,4.52]
[1764130418865,1.48797579,2923.9,2923.5,4.52]
[1764130420156,1.48797579,2923.9,2923.4,1.06881031]
[1764130420358,1.48797579,2923.7,2923.4,3.39981031]
[1764130420860,1.48797579,2923.5,2923.4,1.06881031]
[1764130421068,1.48797579,2923.7,2923.4,1.06881031]
[1764130421662,1.48797579,2923.9,2923.4,1.06881031]
[1764130423262,1.48797579,2924.1,2923.4,2.5567861]
[1764130423464,1.48797579,2924.3,2923.4,2.5567861]
[1764130423761,1.48797579,2924.1,2923.4,2.5567861]
[1764130424265,1.48797579,2924.1,2923.4,1.06881031]
[1764130424473,1.48797579,2923.7,2923.5,2.917]
[1764130424862,1.48797579,2923.9,2923.5,2.917]
[1764130425269,1.48797579,2923.9,2923.4,1.06881031]
[1764130425270,1.48797579,2923.9,2923.4,5.19481031]
[1764130425968,1.48797579,2923.9,2923.4,5.59681031]
[1764130428873,1.48797579,2923.9,2923.4,1.06881031]
[1764130429271,1.48797579,2924.1,2923.4,1.06881031]
[1764130430666,1.48797579,2923.7,2923.4,1.06881031]
[1764130431573,1.48797579,2923.9,2923.4,1.06881031]
[1764130433974,1.48797579,2924.2,2923.4,1.06881031]
[1764130434175,0.8281171,2924.1,2923.4,1.06881031]
[1764130434371,1.48797579,2924.2,2923.4,1.06881031]
[1764130434572,0.82827131,2924.1,2923.4,1.06881031]
[1764130434772,1.48797579,2924.2,2923.4,1.06881031]
[1764130434968,0.82827291,2924.1,2923.4,1.06881031]
[1764130435169,0.89953013,2924.4,2923.6,1.48797579]
[1764130435363,0.82827474,2924.3,2923.6,1.48797579]
[1764130435675,0.82827474,2924.2,2923.6,1.48797579]
[1764130435877,1.48797579,2924.4,2923.6,1.48797579]
[1764130436074,0.82823131,2924.3,2923.4,1.72422102]
[1764130436265,0.65541071,2924.4,2923.4,1.72422102]
[1764130436471,0.82830439,2924.3,2923.4,1.72422102]
[1764130436670,0.82830439,2924.2,2923.4,1.06881031]
[1764130436981,2.71743334,2924.5,2923.4,1.06881031]
[1764130437169,0.82827914,2924.4,2923.4,1.06881031]
[1764130437474,0.82827914,2924.3,2923.4,1.06881031]
[1764130437676,0.82827914,2924.2,2923.4,1.06881031]
[1764130437876,2.71743334,2924.5,2923.4,1.06881031]
[1764130438077,0.82837898,2924.4,2923.4,1.06881031]
[1764130438278,0.82837898,2924.3,2923.5,1.1595]
[1764130438477,0.82837898,2924.2,2923.6,1.614]
[1764130438671,0.94385031,2924.4,2923.6,1.614]
[1764130438873,0.82851004,2924.3,2923.5,1.1595]
[1764130439070,0.82851004,2924.2,2923.5,1.1595]
[1764130439272,0.82851004,2924.1,2923.5,1.1595]
[1764130439473,0.17106,2924.3,2923.5,1.1595]
[1764130439673,0.82860446,2924.2,2923.5,1.1595]
[1764130439881,0.82860446,2924.1,2923.5,1.1595]
[1764130440076,0.17106,2924.3,2923.5,1.1595]
[1764130440380,0.82856497,2924.2,2923.5,1.1595]
[1764130440573,0.82856497,2924.1,2923.5,1.1595]
[1764130440768,0.17106,2924.3,2923.5,1.1595]
[1764130440974,0.82852997,2924.2,2923.5,1.1595]
[1764130441275,0.82852997,2924.1,2923.5,1.1595]
[1764130441481,0.17106,2924.3,2923.5,1.1595]
[1764130441680,0.82850215,2924.2,2923.5,1.1595]
[1764130441879,0.82850215,2924.1,2923.5,1.1595]
[1764130442084,0.17106,2924.3,2923.5,1.1595]
[1764130442280,0.8285041,2924.2,2923.5,1.1595]
[1764130442480,0.8285041,2924.1,2923.5,3.1085]
[1764130442778,0.17106,2924.3,2923.5,3.1085]
[1764130443083,1.89908621,2924.3,2923.5,3.1085]
[1764130443381,0.82849608,2924.2,2923.5,1.1595]
[1764130444885,0.00513303,2924.5,2923.5,1.3306]
[1764130445086,0.00513303,2924.5,2923.6,2.46108132]
[1764130446684,0.00513303,2924.5,2923.7,2.46108132]
[1764130446884,0.00513303,2924.5,2923.8,2.46108132]
[1764130448594,0.00513303,2924.5,2923.9,2.965]
[1764130449091,0.00513303,2924.5,2924.0,3.871]
[1764130449288,0.00513303,2924.5,2924.1,3.934]
[1764130451394,0.00513303,2924.5,2924.1,4.046]
[1764130451795,0.00513303,2924.5,2924.2,0.9468]
[1764130453895,0.94385031,2924.4,2924.2,0.9468]
[1764130457801,0.82950832,2924.3,2924.2,0.9468]
[1764130459997,6.82950832,2924.3,2923.5,1.1595]
[1764130460197,0.82950832,2924.2,2923.5,1.1595]
[1764130460397,0.17106,2924.3,2923.5,1.1595]
[1764130460597,0.82921297,2924.2,2923.5,1.1595]
[1764130460796,0.17106,2924.3,2923.5,1.1595]
[1764130460999,0.82921301,2924.2,2923.5,1.1595]
[1764130461298,0.17106,2924.3,2923.5,1.1595]
[1764130461498,0.829206,2924.2,2923.4,0.00351031]
[1764130461699,0.17106,2924.3,2923.4,0.00351031]
[1764130461900,0.17107,2924.1,2923.4,0.00351031]
[1764130462501,0.17107,2924.0,2923.4,0.00351031]
[1764130462897,0.82904033,2923.9,2923.4,0.00351031]
[1764130463098,0.17107,2924.0,2923.4,0.00351031]
[1764130463307,0.82904809,2923.9,2923.5,1.05]
[1764130463504,0.17107,2924.0,2923.5,1.05]
[1764130463705,0.82890274,2923.9,2923.5,1.05]
[1764130463905,0.17107,2924.0,2923.5,1.05]
[1764130464107,0.82890226,2923.9,2923.5,1.05]
[1764130464309,0.17107,2924.0,2923.5,1.2611]
[1764130464613,0.82874292,2923.9,2923.5,1.2611]
[1764130464905,0.17107,2924.0,2923.5,1.2611]
[1764130465108,0.82874577,2923.9,2923.5,1.2611]
[1764130465300,0.17107,2924.0,2923.5,1.2611]
[1764130466009,0.82859272,2923.9,2923.5,1.2611]
[1764130466204,0.17107,2924.0,2923.5,1.2611]
[1764130466406,0.17108,2923.9,2923.5,1.2611]
[1764130482320,0.82998442,2923.8,2923.5,1.2611]
[1764130482519,0.17108,2923.9,2923.5,1.2611]
[1764130482720,0.82998482,2923.8,2923.5,1.2611]
[1764130482916,0.17108,2923.9,2923.5,1.2611]
[1764130483313,0.83037037,2923.8,2923.5,1.2611]
[1764130483513,0.17108,2923.9,2923.5,1.2611]
[1764130483720,0.83037672,2923.8,2923.5,1.2611]
[1764130484021,0.17108,2923.9,2923.5,1.2611]
[1764130484212,0.83037673,2923.8,2923.5,1.2611]
[1764130484413,0.17108,2923.9,2923.5,1.2611]
[1764130484613,0.83053815,2923.8,2923.5,1.2611]
[1764130484814,0.17108,2923.9,2923.5,1.2611]
[1764130485008,0.89953013,2924.1,2923.5,1.2611]
[1764130485214,0.83055329,2924.0,2923.5,1.2611]
[1764130485420,1.7098719,2924.3,2923.5,1.2611]
[1764130485619,0.83078366,2924.2,2923.5,1.2611]
[1764130485820,0.83078366,2924.1,2923.5,1.2611]
[1764130486017,0.83078366,2924.0,2923.5,1.2611]
[1764130486220,1.7098719,2924.3,2923.5,1.2611]
[1764130486421,0.83099718,2924.2,2923.5,1.2611]
[1764130486720,1.7098719,2924.3,2923.5,1.2611]
[1764130486721,0.83099718,2924.1,2923.5,1.2611]
[1764130486921,0.83099718,2924.0,2923.5,1.2611]
[1764130487122,1.7098719,2924.3,2923.5,1.2611]
[1764130487323,1.73052215,2924.2,2923.5,1.2611]
[1764130493029,0.83099202,2924.2,2923.5,1.2611]
[1764130493226,0.83099202,2924.1,2923.5,1.2611]
[1764130493434,0.89953013,2924.4,2923.5,1.2611]
[1764130493826,1.73111493,2924.4,2923.5,1.2611]
[1764130494323,0.8315848,2924.3,2923.5,1.2611]
[1764130494519,0.8315848,2924.2,2923.5,1.2611]
[1764130494824,0.89953013,2924.4,2923.5,1.2611]
[1764130495031,0.83153175,2924.3,2923.5,1.2611]
[1764130495223,0.83153175,2924.2,2923.5,1.2611]
[1764130495530,0.90466316,2924.5,2923.5,1.2611]
[1764130495731,0.83143856,2924.4,2923.5,1.2611]
[1764130495924,0.83143856,2924.3,2923.5,1.2611]
[1764130496124,0.83143856,2924.2,2923.5,1.2611]
[1764130496327,0.83143856,2924.1,2923.5,1.2611]
[1764130496629,0.89953013,2924.4,2923.5,1.2611]
[1764130496824,0.83137642,2924.3,2923.5,1.2611]
[1764130497018,0.83137642,2924.2,2923.5,1.2611]
[1764130497219,0.89953013,2924.4,2923.5,1.2611]
[1764130497427,0.83132734,2924.3,2923.5,1.2611]
[1764130497625,0.89953013,2924.4,2923.5,1.2611]
[1764130497626,0.83132734,2924.2,2923.5,1.2611]
[1764130497930,0.89953013,2924.4,2923.5,1.2611]
[1764130498133,0.8313273,2924.3,2923.5,1.2611]
[1764130498330,0.17618303,2924.5,2923.5,1.90038177]
[1764130498532,0.83135291,2924.4,2923.5,1.90038177]
[1764130498734,0.83135291,2924.3,2923.5,1.90038177]
[1764130498931,0.17618303,2924.5,2923.5,1.90038177]
[1764130499132,0.83135525,2924.4,2923.5,1.90038177]
[1764130499335,0.83135525,2924.3,2923.5,1.90038177]
[1764130499528,0.00513303,2924.5,2923.5,1.90038177]
[1764130499729,0.83125601,2924.4,2923.5,1.90038177]
[1764130499940,0.00513303,2924.5,2923.5,1.90038177]
[1764130500130,0.83139961,2924.4,2923.5,1.90038177]
[1764130500331,0.00513303,2924.5,2923.5,1.90038177]
[1764130500735,0.00513303,2924.5,2924.2,0.63928177]
[1764130500929,0.00255195,2925.0,2924.3,1.951]
[1764130501124,0.00255195,2925.0,2924.7,0.63928177]
[1764130501436,1.79868031,2925.8,2924.8,3.807]
[1764130502128,0.00511815,2925.6,2925.0,0.6444148]
[1764130502436,0.00860176,2925.6,2925.1,3.802]
[1764130503335,0.00860176,2925.6,2925.2,3.424]
[1764130504339,0.00860176,2925.6,2925.0,0.00513303]
[1764130504830,0.00860176,2925.6,2925.1,0.961]
[1764130505030,0.63928177,2925.4,2925.0,0.00513303]
[1764130506733,0.63928177,2925.1,2925.0,0.00513303]
[1764130507536,6.63928177,2925.1,2923.7,0.63928177]
[1764130507740,0.63928177,2924.7,2923.8,0.604]
[1764130508040,0.63928177,2925.0,2923.8,0.604]
[1764130508636,0.63928177,2925.0,2924.1,0.00513303]
[1764130509644,0.63928177,2925.0,2924.2,1.1743]
[1764130509942,0.63928177,2925.3,2924.3,0.63928177]
[1764130510141,0.00860176,2925.6,2924.3,0.63928177]
[1764130510142,0.64788353,2925.6,2924.3,0.63928177]
[1764130510939,0.00860176,2925.6,2924.6,0.63928177]
[1764130512141,0.64788353,2925.6,2924.6,0.63928177]
[1764130512338,0.64788353,2925.6,2924.3,0.63928177]
[1764130512544,0.63928177,2925.3,2924.3,0.63928177]
[1764130512744,0.63928177,2925.3,2924.4,0.775]
[1764130513542,0.64788353,2925.6,2924.4,0.775]
[1764130514642,0.63928177,2925.3,2924.5,2.711]
[1764130516145,0.63928177,2925.3,2924.5,3.082]
[1764130517145,0.63928177,2925.5,2924.5,3.082]
[1764130518038,0.63928177,2925.5,2924.6,1.155]
[1764130518346,0.63928177,2925.5,2924.7,0.2103]
[1764130519346,0.00860176,2925.6,2924.7,0.2103]
[1764130520534,0.65488575,2925.5,2924.7,0.86518575]
[1764130521542,0.00860176,2925.6,2924.9,0.65488575]
[1764130522451,0.00860176,2925.6,2924.7,0.2103]
[1764130522452,0.65488575,2925.3,2924.7,0.2103]
[1764130522734,0.65488575,2925.3,2924.8,0.602]
[1764130523046,0.65488575,2925.5,2924.8,0.602]
[1764130524146,0.00860176,2925.6,2925.1,0.65488575]
[1764130524348,0.00860176,2925.6,2925.3,0.65488575]
[1764130524846,0.00860176,2925.6,2925.0,0.65488575]
[1764130525143,0.00860176,2925.6,2925.1,0.408]
[1764130526346,0.00860176,2925.6,2925.2,0.65488575]
[1764130528944,0.00860176,2925.6,2925.5,0.65488575]
[1764130529150,0.00860176,2925.6,2925.5,0.65829499]
[1764130529344,0.00860176,2925.6,2925.5,0.00340924]
[1764130534857,0.00860176,2925.6,2925.5,0.65829499]
[1764130535453,0.00860176,2925.6,2925.5,0.00340924]
[1764130549162,0.66348751,2925.6,2925.5,0.00340924]
[1764130549667,0.66348751,2925.6,2924.7,0.2103]
[1764130549976,0.65488575,2925.3,2924.7,0.2103]
[1764130550170,0.65488575,2925.5,2924.7,0.2103]
[1764130550371,0.8319195,2925.4,2924.7,0.2103]
[1764130550562,0.8319195,2925.3,2924.7,0.2103]
[1764130550763,0.65488575,2925.5,2924.7,0.21293933]
[1764130550962,0.83191989,2925.4,2924.7,0.21293933]
[1764130551162,0.83191989,2925.3,2924.7,0.21293933]
[1764130551461,0.65488575,2925.5,2924.7,0.21293933]
[1764130551663,0.83186975,2925.4,2924.7,0.21293933]
[1764130551862,0.83186975,2925.3,2924.7,0.21293933]
[1764130552067,0.65488575,2925.5,2924.7,0.21293933]
[1764130552260,0.00860176,2925.6,2925.1,0.65488575]
[1764130552761,0.00860176,2925.6,2925.2,1.009]
[1764130552968,0.66348751,2925.6,2924.8,0.8409]
[1764130553170,0.65488575,2925.4,2924.9,2.913]
[1764130553368,0.65488575,2925.2,2924.8,0.8409]
[1764130554171,0.65488575,2925.0,2924.8,0.8409]
[1764130554567,1.3097715,2925.0,2924.8,0.8409]
[1764130554768,1.3097715,2925.0,2924.7,0.21293933]
[1764130554973,0.65488575,2924.8,2924.7,0.21293933]
[1764130557870,0.90038013,2925.3,2924.7,0.21293933]
[1764130558069,0.83041867,2925.2,2924.7,0.21293933]
[1764130558269,0.65488575,2925.3,2924.7,0.21293933]
[1764130562369,0.66348751,2925.6,2924.7,0.86782508]
[1764130562576,0.83045389,2925.5,2924.7,0.86782508]
[1764130562777,0.66348751,2925.6,2924.7,0.86782508]
[1764130562967,0.83062547,2925.5,2924.7,0.86782508]
[1764130563169,0.66348751,2925.6,2924.7,0.86782508]
[1764130563366,0.8305659,2925.5,2924.7,0.65752508]
[1764130563579,0.66348751,2925.6,2924.7,0.65752508]
[1764130563878,0.83058842,2925.5,2924.8,0.404]
[1764130564073,0.66348751,2925.6,2924.8,0.404]
[1764130566275,0.00860176,2925.6,2925.0,0.65488575]
[1764130567180,0.00860176,2925.6,2924.8,0.404]
[1764130567181,0.00860176,2925.6,2925.1,0.2099]
[1764130569178,0.65488575,2925.2,2925.1,0.2099]
[1764130571183,2.31199628,2925.2,2924.7,0.00263933]
[1764130571484,0.65488575,2924.5,2924.1,0.00513303]
[1764130572079,0.65488575,2924.3,2923.3,0.82599575]
[1764130572278,0.65488575,2923.8,2923.3,2.75710773]
[1764130572483,0.17104,2924.6,2923.4,0.65488575]
[1764130572683,0.65488575,2924.3,2923.4,0.65488575]
[1764130573285,0.00513303,2924.1,2923.6,0.00513303]
[1764130574891,0.00513303,2924.1,2923.6,0.66001878]
[1764130575284,0.00513303,2924.1,2923.8,0.65488575]
[1764130576393,0.00513303,2924.1,2923.6,0.66001878]
[1764130577290,0.00513303,2924.1,2923.6,0.00513303]
[1764130577488,0.00513303,2924.1,2923.6,3.43513303]
[1764130577686,0.00513303,2924.1,2923.6,0.00513303]
[1764130578292,0.00513303,2924.1,2923.7,0.65488575]
[1764130579301,0.00513303,2924.1,2923.6,0.00513303]
[1764130579802,0.00513303,2924.1,2923.7,0.65488575]
[1764130580503,0.00513303,2924.1,2923.6,0.00513303]
[1764130582907,0.00513303,2924.1,2923.7,0.63899997]
[1764130584304,0.00513303,2924.1,2923.6,0.00513303]
[1764130584512,0.00513303,2924.1,2923.7,5.201]
[1764130585908,0.00513303,2924.1,2923.7,5.329]
[1764130587407,0.00513303,2924.1,2923.7,5.96799997]
[1764130587602,0.00513303,2924.1,2924.0,0.63899997]
[1764130589016,0.17101,2925.2,2924.0,0.63899997]
[1764130589313,0.83319522,2925.1,2924.0,0.63899997]
[1764130589514,0.17101,2925.2,2924.0,0.63899997]
[1764130590115,0.00513303,2924.9,2924.0,0.63899997]
[1764130591108,0.00513303,2924.9,2924.3,0.63899997]
[1764130593116,0.00513303,2924.9,2924.6,0.63899997]
[1764130593417,0.00513303,2924.9,2924.7,1.995]
[1764130593817,0.00513303,2924.9,2924.3,0.63899997]
[1764130594217,0.00513303,2924.9,2924.4,1.322]
[1764130594918,0.00513303,2924.9,2924.5,1.1375]
[1764130595806,0.00513303,2924.9,2924.6,0.63899997]
[1764130596619,0.00513303,2924.9,2924.5,1.1375]
[1764130597507,0.00348361,2925.6,2924.5,1.1375]
[1764130597706,0.00348361,2925.6,2924.9,0.17102]
[1764130597920,0.00348361,2925.6,2925.0,1.541]
[1764130598618,0.00860176,2925.6,2925.0,1.541]
[1764130600610,0.00860176,2925.6,2925.1,3.649]
[1764130600817,0.00860176,2925.6,2925.2,3.649]
[1764130601118,0.00860176,2925.6,2925.1,0.00513303]
[1764130601323,0.00860176,2925.6,2925.2,1.137]
[1764130601718,0.00860176,2925.6,2925.1,0.00513303]
[1764130611325,0.17092,2926.6,2925.1,0.00513303]
[1764130611619,1.00520948,2926.5,2925.1,0.00513303]
[1764130611819,0.83427948,2926.4,2925.1,0.00513303]
[1764130612326,0.83809797,2926.4,2925.1,0.00513303]
[1764130612624,0.00381849,2926.4,2925.1,0.00513303]
[1764130614227,0.00381849,2926.4,2925.2,0.9941]
[1764130615224,0.00381849,2926.4,2925.3,0.981]
[1764130619227,0.00381849,2926.4,2925.3,1.152]
[1764130620929,0.00381849,2926.4,2925.4,3.419]
[1764130621125,0.00381849,2926.4,2925.4,3.42226372]
[1764130622226,0.00381849,2926.4,2925.6,0.17098]
[1764130622430,0.00381849,2926.4,2925.7,0.17097]
[1764130623934,0.00381849,2926.4,2925.8,4.888]
[1764130624228,0.00381849,2926.4,2925.8,5.05897]
[1764130625032,1.07126013,2927.4,2925.9,0.17096]
[1764130625230,0.83499478,2927.3,2926.0,0.17096]
[1764130625429,1.81238926,2927.5,2926.0,0.17096]
[1764130625732,0.83516939,2927.4,2926.0,0.17096]
[1764130625933,0.83516939,2927.3,2925.8,7.34908132]
[1764130626130,1.10126439,2927.4,2925.9,2.46108132]
[1764130626429,1.10126439,2927.4,2925.4,2.46434504]
[1764130626430,0.17089,2927.2,2925.4,2.46434504]
[1764130626633,1.90601751,2927.2,2925.5,1.279]
[1764130626930,0.83474738,2927.1,2925.5,1.279]
[1764130627129,0.83474738,2927.0,2925.5,1.279]
[1764130627320,0.83474738,2926.9,2925.5,1.279]
[1764130627522,1.07127013,2927.2,2925.5,1.279]
[1764130627724,0.83454382,2927.1,2925.5,1.279]
[1764130627924,0.83454382,2927.0,2925.5,1.44998]
[1764130628123,1.07127013,2927.2,2925.5,0.17098]
[1764130628325,0.83442581,2927.1,2925.6,0.826]
[1764130628634,0.9043847,2927.4,2925.9,0.17096]
[1764130628836,0.83437546,2927.3,2925.9,0.17096]
[1764130629130,0.00400457,2927.4,2925.9,0.17096]
[1764130629533,0.83430978,2927.3,2925.9,0.17096]
[1764130629832,0.00400457,2927.4,2925.9,0.17096]
[1764130630032,0.83429466,2927.3,2925.9,0.17096]
[1764130630231,0.00400457,2927.4,2926.0,0.17096]
[1764130630433,0.00400457,2927.4,2926.3,0.17094]
[1764130631331,0.00400457,2927.4,2926.4,1.178]
[1764130631636,0.00400457,2927.4,2926.6,0.00513303]
[1764130636035,0.00400457,2927.4,2926.7,2.734]
[1764130641745,0.00400457,2927.4,2926.8,0.7202]
[1764130642547,0.00400457,2927.4,2926.9,0.65392347]
[1764130643350,0.00400457,2927.4,2926.8,0.7202]
[1764130643351,0.65392347,2927.1,2926.8,0.7202]
[1764130643550,0.65392347,2926.9,2926.8,0.7202]
[1764130644546,0.94619641,2927.4,2926.8,0.7202]
[1764130647147,0.83457966,2927.3,2926.8,0.7202]
[1764130647361,0.83457966,2927.2,2926.8,0.7202]
[1764130647648,0.83457966,2927.1,2926.8,0.7202]
[1764130647846,1.84657654,2927.4,2926.8,0.7202]
[1764130648150,1.73511978,2927.3,2926.8,0.7202]
[1764130651247,0.83473965,2927.2,2926.8,0.7202]
[1764130651447,0.83473965,2927.1,2926.8,0.7202]
[1764130651656,0.9043847,2927.4,2926.8,0.7202]
[1764130651843,0.83570596,2927.3,2926.8,0.7202]
[1764130652044,0.00400457,2927.4,2926.8,0.7202]
[1764130652246,0.94219184,2927.2,2926.8,0.7202]
[1764130652446,0.83642138,2927.1,2926.8,0.7202]
[1764130652858,0.90038013,2927.3,2926.8,0.7202]
[1764130653256,1.73778682,2927.3,2926.8,0.7202]
[1764130653853,1.90867682,2927.3,2926.8,0.7202]
[1764130654055,0.83740669,2927.2,2926.8,0.7202]
[1764130654251,1.00829669,2927.2,2926.8,0.7202]
[1764130654455,1.00829669,2927.1,2926.8,0.7202]
[1764130654656,0.83740669,2927.0,2926.8,0.7202]
[1764130657661,1.00830669,2927.0,2926.8,0.7202]
[1764130657955,1.90868682,2926.9,2926.8,0.15778458]
[1764130658155,1.37027351,2926.9,2926.8,0.1402313]
[1764130658358,0.83740669,2926.9,2925.4,0.00326372]
[1764130658557,0.94219184,2926.2,2925.4,0.00326372]
[1764130658758,0.83740669,2926.1,2925.4,0.00326372]
[1764130659453,0.00513303,2926.0,2925.5,0.00513303]
[1764130663555,0.17091,2926.8,2925.5,0.00513303]
[1764130663767,0.83784904,2926.7,2925.5,0.00513303]
[1764130663963,0.17091,2926.8,2925.5,0.00513303]
[1764130664161,0.8378496,2926.7,2925.5,0.00513303]
[1764130664463,0.17091,2926.8,2925.5,0.00513303]
[1764130664663,0.83781698,2926.7,2925.5,0.00513303]
[1764130664857,0.17091,2926.8,2925.5,0.00513303]
[1764130665162,0.90529744,2927.2,2925.6,0.94219184]
[1764130665361,0.83791506,2927.1,2925.6,0.94219184]
[1764130665560,0.83791506,2927.0,2925.6,0.94219184]
[1764130665769,2.45374061,2927.3,2925.6,0.94219184]
[1764130666064,0.83801396,2927.2,2925.6,0.94219184]
[1764130666264,0.83801396,2927.1,2925.6,0.94219184]
[1764130666456,0.83801396,2927.0,2925.6,0.94219184]
[1764130666656,2.45374061,2927.3,2925.6,0.94219184]
[1764130666856,0.83803665,2927.2,2925.6,0.94219184]
[1764130667058,0.83803665,2927.1,2925.6,0.94219184]
[1764130667256,0.83803665,2927.0,2925.6,0.94219184]
[1764130667452,2.45374061,2927.3,2925.6,0.94219184]
[1764130667664,0.83804776,2927.2,2925.6,0.94219184]
[1764130667858,0.83804776,2927.1,2925.6,0.94219184]
[1764130668060,0.83804776,2927.0,2925.6,0.94219184]
[1764130668258,0.83804776,2926.9,2925.6,0.94219184]
[1764130668460,0.90529744,2927.2,2925.6,0.94219184]
[1764130668663,0.83912685,2927.1,2925.6,0.94219184]
[1764130668863,0.83912685,2927.0,2925.6,0.94219184]
[1764130669165,0.83912685,2926.9,2925.6,0.94219184]
[1764130669365,0.90529744,2927.2,2925.6,0.94219184]
[1764130669566,0.83925151,2927.1,2925.7,2.903]
[1764130669767,0.83925151,2927.0,2925.7,2.903]
[1764130669967,0.83925151,2926.9,2925.7,2.903]
[1764130670269,0.90529744,2927.2,2925.8,3.185]
[1764130670467,0.83947565,2927.1,2925.8,3.185]
[1764130670662,0.83947565,2927.0,2925.8,3.185]
[1764130670864,0.83947565,2926.9,2925.8,3.185]
[1764130671168,0.90529744,2927.2,2925.8,3.185]
[1764130671367,0.83968642,2927.1,2925.8,3.185]
[1764130671569,0.83968642,2927.0,2925.8,3.185]
[1764130671865,0.83968642,2926.9,2925.8,3.185]
[1764130672068,0.90529744,2927.2,2925.8,3.185]
[1764130672270,1.74523202,2927.1,2925.8,3.185]
[1764130672569,0.83993458,2927.0,2925.8,3.185]
[1764130673567,0.83993458,2927.0,2925.5,0.17611303]
[1764130673770,0.83993458,2927.0,2925.6,2.66]
[1764130674672,1.01083458,2927.0,2925.7,3.112]
[1764130674871,0.83993458,2926.9,2925.7,3.112]
[1764130675171,0.83993458,2926.8,2925.7,3.112]
[1764130675360,0.83993458,2926.7,2925.7,3.112]
[1764130675566,1.07619744,2927.0,2925.7,3.112]
[1764130675766,0.84055681,2926.9,2925.7,3.112]
[1764130675966,0.84055681,2926.8,2925.7,3.112]
[1764130676165,0.84055681,2926.7,2925.7,3.112]
[1764130676373,1.07619744,2927.0,2925.7,3.112]
[1764130676570,0.84067851,2926.9,2925.7,3.112]
[1764130676770,0.84067851,2926.8,2925.7,3.112]
[1764130676972,0.84067851,2926.7,2925.7,3.112]
[1764130677274,1.07619744,2927.0,2925.7,3.112]
[1764130677473,0.84081247,2926.9,2925.7,3.112]
[1764130677676,0.84081247,2926.8,2925.7,3.112]
[1764130677876,0.84081247,2926.7,2925.7,3.112]
[1764130678173,1.07619744,2927.0,2925.7,3.112]
[1764130678367,0.84086515,2926.9,2925.7,3.112]
[1764130678667,0.84086515,2926.8,2925.7,3.112]
[1764130678868,0.84086515,2926.7,2925.7,3.112]
[1764130679074,1.07619744,2927.0,2925.7,3.112]
[1764130679271,0.84100264,2926.9,2925.7,3.112]
[1764130679467,0.84100264,2926.8,2925.7,3.112]
[1764130679664,0.84100264,2926.7,2925.7,3.112]
[1764130679868,1.07619744,2927.0,2925.7,3.112]
[1764130680069,0.84100289,2926.9,2925.7,3.112]
[1764130680374,0.84100289,2926.8,2925.7,3.112]
[1764130680578,0.84100289,2926.7,2925.7,3.112]
[1764130680775,1.07619744,2927.0,2925.7,3.112]
[1764130680974,0.84146589,2926.9,2925.7,3.112]
[1764130681174,0.84146589,2926.8,2925.7,3.112]
[1764130681374,0.84146589,2926.7,2925.7,3.112]
[1764130681672,1.07619744,2927.0,2925.7,3.112]
[1764130681876,0.84198002,2926.9,2925.7,3.112]
[1764130682075,0.84198002,2926.8,2925.7,3.112]
[1764130682276,0.84198002,2926.7,2925.7,3.112]
[1764130682577,0.90529744,2926.9,2925.8,0.65439588]
[1764130682578,0.65439588,2926.8,2925.8,0.65439588]
[1764130682778,0.84221743,2926.7,2925.8,0.65439588]
[1764130682979,0.65439588,2926.8,2925.8,0.65439588]
[1764130683171,0.84219299,2926.7,2925.8,0.65439588]
[1764130683372,0.84219299,2926.6,2925.8,0.65439588]
[1764130683574,0.65439588,2926.8,2925.8,0.65439588]
[1764130683878,0.84209933,2926.7,2925.8,0.65439588]
[1764130684077,0.84209933,2926.6,2925.8,0.65439588]
[1764130684271,0.65439588,2926.5,2925.7,3.112]
[1764130684569,0.65439588,2926.5,2925.5,3.12061023]
[1764130684773,0.65439588,2926.2,2925.5,0.00513303]
[1764130686073,0.65439588,2926.5,2925.5,0.00513303]
[1764130686375,0.84238631,2926.4,2925.5,0.00513303]
[1764130686567,0.65439588,2926.5,2925.5,0.00513303]
[1764130686770,0.84248494,2926.4,2925.5,0.00513303]
[1764130686972,0.65439588,2926.5,2925.5,0.00513303]
[1764130687172,0.84248474,2926.4,2925.5,0.00513303]
[1764130687373,0.65439588,2926.5,2925.5,0.00513303]
[1764130687574,0.17092,2926.7,2925.7,0.65439588]
[1764130687881,0.8426139,2926.6,2925.7,0.65439588]
[1764130688181,0.17092,2926.7,2925.7,0.65439588]
[1764130688476,0.84306953,2926.6,2925.7,0.65439588]
[1764130688682,0.17092,2926.7,2925.7,0.65439588]
[1764130688981,0.84306918,2926.6,2925.7,0.65439588]
[1764130689181,0.17092,2926.7,2925.7,0.65439588]
[1764130689388,0.84361058,2926.6,2925.7,0.65439588]
[1764130689682,0.17092,2926.7,2925.7,0.65439588]
[1764130689881,0.84392511,2926.6,2925.7,0.65439588]
[1764130690181,0.84429103,2926.5,2925.8,1.1296]
[1764130690377,1.55969332,2926.8,2925.8,1.1296]
[1764130690682,0.84429401,2926.7,2925.8,1.1296]
[1764130690981,0.84429401,2926.6,2925.8,1.1296]
[1764130691177,0.84429401,2926.5,2925.8,1.1296]
[1764130691378,0.90529744,2926.8,2925.8,1.1296]
[1764130691580,1.74998823,2926.8,2925.8,1.1296]
[1764130692179,0.84469079,2926.7,2925.8,1.1296]
[1764130692377,0.84469079,2926.6,2925.8,1.1296]
[1764130692577,0.84469079,2926.5,2925.8,1.1296]
[1764130692777,0.90529744,2926.8,2925.8,1.1296]
[1764130692977,1.75021043,2926.8,2925.8,1.1296]
[1764130693179,1.75021043,2926.7,2925.8,1.1296]
[1764130693378,0.84491299,2926.6,2925.8,1.1296]
[1764130693677,0.90529744,2926.7,2925.8,1.1296]
[1764130693678,0.84491299,2926.5,2925.8,1.1296]
[1764130693883,0.90529744,2926.7,2925.8,1.1296]
[1764130696483,0.90529744,2926.7,2926.0,0.65439588]
[1764130696688,0.84531395,2926.6,2926.0,0.65439588]
[1764130696886,0.84531395,2926.5,2926.3,0.65439588]
[1764130697090,0.90529744,2926.9,2926.4,3.35]
[1764130698085,1.75096776,2926.9,2926.4,3.35]
[1764130699499,0.84567032,2926.9,2926.5,0.65439588]